[Event "1st Bella Italia International 2022"]
[Site "Lignano"]
[Date "2022.08.23"]
[Round "9.1"]
[White "Sonis, Francesco"]
[Black "Visakh N R"]
[Result "1/2-1/2"]
[ECO "A11"]
[WhiteElo "2543"]
[BlackElo "2503"]
[Annotator "TA"]
[PlyCount "134"]
[EventDate "2022.08.18"]
[EventCountry "ITA"]
[SourceTitle "playchess.com"]
[Source "ChessBase"]
[SourceQuality "1"]
[TimeControl "5400+30"]

{[%evp 10,134,5,1,0,0,0,-18,-13,-16,-6,-16,12,2,35,32,39,0,10,0,0,0,21,-8,0,0,0,-15,-19,-12,-19,-34,-21,-18,-15,-41,0,-2,0,-3,-3,-16,0,0,0,-20,0,0,-5,-5,-5,-5,-7,0,0,0,0,0,0,0,0,0,0,0,0,0,55,54,170,163,169,172,168,154,144,142,272,269,1062,1064,1021,1058,970,921,840,744,1041,1029,1111,1026,1026,587,1026,1026,1026,0,0,0,0,0,0,0,0,0,0,0,0,0,0,0,0,0,0,0,0,0,0,0,0,0,0,0,0,0,0,0,0]} 1. Nf3 {[%emt 0:02:42]} d5 {[%emt 0:00:13]} 2. g3 {[%emt 0:00:11]} c6 {[%emt 0:00:10]} 3. Bg2 {[%emt 0:00:10]} Bg4 {[%emt 0:00:09]} 4. c4 {[%emt 0:01:21]} e6 {[%emt 0:05:51]} 5. O-O {[%emt 0:01:29]} Nd7 {[%emt 0:01:03]} 6. d3 {[%emt 0:02:51]} dxc4 {[%emt 0:00:10] A11: English Opening: 1...c6.} 7. dxc4 {[%emt 0:00:08]} Ngf6 {[%emt 0:00:08]} 8. Be3 {[%emt 0:01:50]} Bc5 {[%emt 0:03:42]} 9. Bxc5 {[%emt 0:01:29]} Nxc5 {[%emt 0:00:03]} 10. b4 {[%emt 0:01:02]} Qxd1 {[%emt 0:06:28]} (10... Bxf3 $5 11. Bxf3 Nce4 $11) 11. Rxd1 {[%emt 0:00:03] [#]} Ncd7 $146 {[%emt 0:00:07]} ({Predecessor:} 11... Na4 12. Ne5 Bxe2 13. Rd2 Bh5 14. Nxc6 Bg6 15. Na5 O-O 16. Bxb7 Rad8 17. Nc6 Rde8 {1-0 (34) Schlenter,R (1881)-Wloka,S (1842) Nordrheinwestfalen 2014}) 12. Nbd2 {[%emt 0:02:24]} O-O-O {[%emt 0:09:55]} 13. b5 {[%emt 0:11:31]} Kc7 {[%emt 0:07:34]} 14. bxc6 {[%emt 0:06:25]} bxc6 {[%emt 0:00:40]} 15. Nb3 {[%emt 0:00:24]} e5 {[%emt 0:03:17] Against Nfd4} (15... Bxf3 $5 16. exf3 g5 $11) 16. h3 {[%emt 0:06:45]} Bxf3 {[%emt 0:03:56]} 17. exf3 {[%emt 0:00:04]} Rhe8 {[%emt 0:00:41]} 18. Re1 {[%emt 0:00:13]} Rb8 {[%emt 0:03:18][%cal Bd8b8,Bb8b4,Bb4a4,Ba4a3,Ba3d3,Bd3d4][%mdl 32]} 19. Re3 {[%emt 0:03:47]} Rb4 {[%emt 0:00:55]} 20. Rc1 {[%emt 0:00:44]} Ra4 {[%emt 0:03:32]} 21. Rc2 {[%emt 0:00:03]} Ra3 {[%emt 0:00:20]} 22. Bf1 {[%emt 0:08:26]} Rb8 {[%emt 0:09:15]} 23. h4 {[%emt 0:00:37]} Rb4 {[%emt 0:02:17]} 24. Bh3 {[%emt 0:07:59]} a5 {[%emt 0:01:35][%cal Ba7a5,Ba5a4][%mdl 32]} 25. Re1 {[%emt 0:05:32]} a4 {[%emt 0:01:00]} 26. Nd2 {[%emt 0:00:07]} Rd3 {[%emt 0:00:29]} 27. g4 {[%emt 0:08:32][%cal Bg3g4,Bg4g5][%mdl 32]} Rd4 {[%emt 0:11:11]} 28. g5 {[%emt 0:07:53]} Rxh4 {[%emt 0:01:17]} 29. Kg2 {[%emt 0:00:02]} (29. gxf6 Rxh3 30. fxg7 (30. Kg2 Rh6 $17) 30... Rb8 $15) 29... Nh5 {[%emt 0:08:33] Hoping for ...Nf4+.} 30. Bxd7 {[%emt 0:00:03]} Kxd7 {[%emt 0:00:03]} 31. Rxe5 {[%emt 0:00:06]} f6 {[%emt 0:04:01]} 32. gxf6 {[%emt 0:00:37]} Nxf6 {[%emt 0:00:01]} 33. Ra5 {[%emt 0:00:34]} Kc7 {[%emt 0:06:06]} 34. a3 {[%emt 0:02:44]} Rb7 {[%emt 0:02:20]} 35. Kg3 {[%emt 0:03:16]} Rd4 {[%emt 0:00:36]} 36. Rxa4 {[%emt 0:00:28]} Nh5+ {[%emt 0:00:17]} 37. Kh3 {[%emt 0:00:15]} g5 {[%emt 0:01:07]} ({Black should play} 37... Nf4+ $11 38. Kg3 Nh5+ 39. Kg2 Nf4+ 40. Kg3 Nh5+) 38. Ne4 $14 {[%emt 0:00:27]} Rb1 {[%emt 0:03:52]} (38... h6 $14) 39. Kg4 $1 $18 {[%emt 0:04:01]} (39. Nxg5 Rh1+ 40. Kg2 Rdh4 $11) 39... Nf6+ {[%emt 0:01:04] [#]} 40. Kf5 $1 {[%emt 0:00:02]} Nxe4 {[%emt 0:00:05]} 41. fxe4 {[%emt 0:00:02][%mdl 4096] Endgame KRR-KRR} Re1 {[%emt 0:00:24]} 42. Ra7+ {[%emt 0:00:09]} (42. Kxg5 $6 Rexe4 43. f3 Re5+ 44. Kf6 Rh5 $11) 42... Kb6 {[%emt 0:00:14] [#]} (42... Kc8 $16) 43. Re7 $1 {[%emt 0:00:05]} (43. Rxh7 Rdxe4 44. c5+ (44. Kxg5 Kc5 $16) 44... Kb5 $16) 43... Rd3 $2 {[%emt 0:01:39]} (43... Kc5 44. Re5+ (44. Rxh7 Rexe4 45. Rh5 Rxc4 $14) 44... Kd6 45. c5+ Kc7) 44. c5+ {[%emt 0:00:07]} Kb5 {[%emt 0:02:52]} 45. Rb7+ {[%emt 0:03:56]} Ka4 {[%emt 0:00:00]} 46. Rcb2 {[%emt 0:00:24][%cal Rb7a7]} Kxa3 {[%emt 0:00:00]} 47. R2b6 {[%emt 0:00:08][%cal Rb6a6]} Rd4 {[%emt 0:00:00]} 48. e5 {[%emt 0:02:44]} Re2 {[%emt 0:00:00]} 49. Ra6+ {[%emt 0:02:27]} Ra4 {[%emt 0:00:00]} 50. Rxa4+ {[%emt 0:00:03]} Kxa4 {[%emt 0:00:00] KR-KR} 51. e6 {[%emt 0:01:18]} h5 {[%emt 0:01:13]} 52. Kxg5 $2 {[%emt 0:01:39]} (52. e7 $18) 52... Rxe6 $11 {[%emt 0:00:03] The position is equal.} 53. f4 {[%emt 0:00:04]} h4 $1 {[%emt 0:00:29]} 54. Rb1 {[%emt 0:04:42]} ({Don't do} 54. Kxh4 $6 Re4 $16) 54... h3 {[%emt 0:00:24]} 55. Rh1 {[%emt 0:00:40]} Kb4 {[%emt 0:00:25]} 56. f5 {[%emt 0:00:21]} Re2 {[%emt 0:02:14]} 57. Rxh3 {[%emt 0:00:04]} Kxc5 {[%emt 0:00:28]} 58. f6 {[%emt 0:00:25]} Rf2 {[%emt 0:00:25]} 59. Kg6 {[%emt 0:00:14]} Kd5 {[%emt 0:01:02]} 60. Rd3+ {[%emt 0:01:13]} Ke5 {[%emt 0:00:23]} 61. f7 {[%emt 0:00:41]} c5 {[%emt 0:00:11][%cal Bc6c5,Bc5c4,Bc4c3][%mdl 32]} 62. Rd2 {[%emt 0:00:34]} Rf3 {[%emt 0:00:30]} 63. Rg2 {[%emt 0:00:46]} c4 {[%emt 0:00:24]} 64. Rg4 {[%emt 0:00:06]} Ke6 {[%emt 0:00:42]} 65. Re4+ {[%emt 0:00:09]} Kd5 {[%emt 0:00:03]} 66. Rh4 {[%emt 0:00:34]} c3 {[%emt 0:00:24]} 67. Rh3 {[%emt 0:00:10]} Rxf7 $1 {[%emt 0:00:10] Black defended with fortune.  Weighted Error Value: White=0.11 (very precise) /Black=0.12 (very precise)} (67... Rxh3 $2 68. f8=Q Rg3+ 69. Kh5 $18) 1/2-1/2

[Event "1st Bella Italia International 2022"]
[Site "Lignano"]
[Date "2022.08.23"]
[Round "9.2"]
[White "Aaron, Deepak"]
[Black "Ghosh, Diptayan"]
[Result "1/2-1/2"]
[ECO "E43"]
[WhiteElo "2221"]
[BlackElo "2538"]
[Annotator "TA"]
[PlyCount "45"]
[EventDate "2022.08.18"]
[EventCountry "ITA"]
[SourceTitle "playchess.com"]
[Source "ChessBase"]
[SourceQuality "1"]
[TimeControl "5400+30"]

{[%evp 17,45,7,21,9,37,31,18,27,41,18,60,56,54,61,67,61,100,54,75,40,39,44,44,49,31,29,47,0,0,0]} 1. d4 {[%emt 0:02:41]} Nf6 {[%emt 0:03:48]} 2. c4 {[%emt 0:00:36]} e6 {[%emt 0:00:07]} 3. Nc3 {[%emt 0:00:05]} Bb4 {[%emt 0:00:05]} 4. Nf3 {[%emt 0:00:12]} b6 {[%emt 0:00:31]} 5. e3 {[%emt 0:00:16]} Bb7 {[%emt 0:00:06]} 6. Bd3 {[%emt 0:00:05]} O-O {[%emt 0:02:01]} 7. O-O {[%emt 0:00:06]} Bxc3 {[%emt 0:02:35]} 8. bxc3 {[%emt 0:00:06]} Ne4 {[%emt 0:00:09]} 9. Qc2 {[%emt 0:00:30]} f5 $1 {[%emt 0:00:04]} 10. c5 {[%emt 0:00:11] E43: Nimzo-Indian: Rubinstein: 4...b6.} d6 {[%emt 0:05:12]} 11. cxd6 {[%emt 0:01:44]} cxd6 {[%emt 0:00:05]} 12. Nd2 {[%emt 0:02:20][%cal Rd2e4]} Nxd2 {[%emt 0:02:05] [#]} 13. Qxd2 $146 {[%emt 0:05:09]} ({Predecessor:} 13. Bxd2 Qh4 14. f3 Nd7 15. Be1 Qe7 16. a4 a5 17. Rb1 Rac8 18. Bg3 Bd5 19. e4 {1-0 (44) Chatalbashev,B (2515)-Bogner,S (2573) Kragero 2022}) 13... Nd7 {[%emt 0:01:40]} 14. a4 {[%emt 0:00:43][%cal Oa4a5]} a5 {[%emt 0:05:19]} 15. Ba3 {[%emt 0:00:19]} Nf6 {[%emt 0:03:15]} (15... Qg5 $2 16. f3 $16) 16. f3 {[%emt 0:03:19]} Bc6 {[%emt 0:00:06] [#]} 17. Qa2 {[%emt 0:10:00]} (17. e4 $1 $16) 17... Re8 {[%emt 0:11:12]} 18. Rfe1 {[%emt 0:03:19]} (18. Bc1 $5 {[%cal Rd3f5]}) 18... Kh8 {[%emt 0:02:10]} 19. Qb3 {[%emt 0:04:23]} Qd7 {[%emt 0:06:51]} 20. e4 {[%emt 0:02:10]} ({Don't go for} 20. Qxb6 $2 Reb8 21. Qb1 Rxb1 $19) 20... fxe4 {[%emt 0:02:53]} 21. fxe4 {[%emt 0:00:37]} Rab8 {[%emt 0:50:46]} 22. Bb5 (22. Bc1 $14) 22... Bxb5 $11 23. Qxb5 {[%emt 1:03:09] Weighted Error Value: White=0.11 (very precise) /Black=0.11 (very precise)} 1/2-1/2

[Event "1st Bella Italia International 2022"]
[Site "Lignano"]
[Date "2022.08.23"]
[Round "9.3"]
[White "Das, Sayantan"]
[Black "Karthik Venkataraman"]
[Result "1-0"]
[ECO "B52"]
[WhiteElo "2449"]
[BlackElo "2483"]
[Annotator "TA"]
[PlyCount "183"]
[EventDate "2022.08.18"]
[EventCountry "ITA"]
[SourceTitle "playchess.com"]
[Source "ChessBase"]
[SourceQuality "1"]
[TimeControl "5400+30"]

{[%evp 9,183,14,25,13,14,13,18,0,29,21,22,18,43,39,41,25,46,28,41,28,54,0,0,8,2,-2,11,0,0,0,12,16,29,30,23,25,26,31,43,24,43,14,52,23,23,23,23,23,23,24,23,23,24,23,34,0,29,24,24,24,35,29,29,0,29,0,0,0,45,0,0,2,52,52,70,61,68,55,85,83,83,70,102,114,154,0,15,0,18,18,28,0,23,18,143,0,31,0,144,151,149,153,172,146,161,150,418,409,426,432,426,426,431,412,356,405,540,540,524,512,502,486,599,593,581,526,520,526,523,512,509,506,503,479,470,518,558,543,506,519,12833,12834,2308,631,624,616,602,589,571,576,557,555,518,510,517,502,580,577,1431,1361,12837,12837,12834,638,611,558,7025,7025,4706,3064,1365,1631,1597,1308,956,813]} 1. e4 {[%emt 0:01:03]} c5 {[%emt 0:06:04]} 2. Nf3 {[%emt 0:00:52]} d6 {[%emt 0:00:06]} 3. Bb5+ {[%emt 0:00:09]} Bd7 {[%emt 0:00:19]} 4. c4 {[%emt 0:00:10]} Nf6 {[%emt 0:00:42]} 5. Nc3 {[%emt 0:00:13]} Nc6 {[%emt 0:00:15]} 6. O-O {[%emt 0:00:52] B52: Sicilian: Moscow Variation with 3...Bd7.} g6 {[%emt 0:00:05]} 7. Bxc6 {[%emt 0:01:32]} Bxc6 {[%emt 0:00:16]} 8. d4 {[%emt 0:00:08] The position is equal.} cxd4 {[%emt 0:02:27]} 9. Nxd4 {[%emt 0:03:14]} Bg7 {[%emt 0:00:15]} 10. Qd3 {[%emt 0:06:55]} O-O {[%emt 0:01:03]} 11. b3 {[%emt 0:03:32]} Qa5 {[%emt 0:13:10]} 12. Bb2 {[%emt 0:03:58] [#]} a6 $146 {[%emt 0:05:34]} ({Predecessor:} 12... Rfc8 13. Rfd1 Qh5 14. f3 Be8 15. Rab1 a6 16. a4 Rc7 17. Nde2 Rb8 18. Nf4 Qc5+ {1-0 (66) Okhai,S (2082)-Ogunshola,B (2184) Basingstoke 2019}) 13. Rfe1 {[%emt 0:14:21]} Rfe8 {[%emt 0:00:08]} 14. Nd5 {[%emt 0:03:40]} Nd7 {[%emt 0:05:26]} 15. Qh3 {[%emt 0:11:15]} (15. Bc3 $14 {should be considered.} Qd8 16. Qd2 (16. Nxc6 bxc6 17. Nb4 Qb6 $11)) 15... e6 $11 {[%emt 0:03:03]} 16. Nxc6 {[%emt 0:05:25]} bxc6 {[%emt 0:00:11]} 17. Bxg7 {[%emt 0:00:10] The board is on fire.} Kxg7 {[%emt 0:00:23]} 18. b4 {[%emt 0:05:18]} Qd8 {[%emt 0:00:50]} 19. Qc3+ {[%emt 0:00:08]} e5 {[%emt 0:02:05]} 20. Ne3 {[%emt 0:00:20]} Qc7 {[%emt 0:11:08]} 21. Qd2 {[%emt 0:02:11]} a5 {[%emt 0:04:17]} 22. a3 {[%emt 0:03:53]} axb4 {[%emt 0:08:49]} 23. axb4 {[%emt 0:00:06]} Rxa1 {[%emt 0:05:32]} 24. Rxa1 {[%emt 0:00:03]} Rb8 {[%emt 0:00:53]} 25. Rd1 {[%emt 0:03:59][%cal Ba1d1,Bd1d6,Bd6c6,Bc6c8][%mdl 32]} Nf8 {[%emt 0:00:07]} (25... Nf6 $5 {[%cal Rf6e4]}) 26. h4 {[%emt 0:11:25] White wants to play Ng4.} h5 {[%emt 0:05:06] Inhibits Ng4.} 27. Qxd6 {[%emt 0:02:01]} Qxd6 {[%emt 0:00:05]} 28. Rxd6 {[%emt 0:00:04]} Rxb4 {[%emt 0:00:03]} 29. Rxc6 {[%emt 0:18:03][%mdl 4096] Endgame KRN-KRN} Rb1+ {[%emt 0:00:05]} 30. Kh2 {[%emt 0:00:00]} Rb2 {[%emt 0:00:03]} 31. Kg3 {[%emt 0:00:00]} Ne6 {[%emt 0:00:20] Inhibits Rc5.} 32. Nd5 {[%emt 0:00:00]} Re2 {[%emt 0:02:15]} 33. f3 {[%emt 0:00:00]} Rc2 {[%emt 0:00:06]} 34. Rc8 {[%emt 0:00:00]} Rc1 {[%emt 0:01:12]} 35. Kf2 {[%emt 0:00:00]} Rc2+ {[%emt 0:00:12]} 36. Kg3 {[%emt 0:00:00]} Rc1 {[%emt 0:00:05]} 37. Ne3 {[%emt 0:00:00]} Rc3 $1 {[%emt 0:03:26]} 38. Kf2 {[%emt 0:00:00]} Kh7 {[%emt 0:00:09]} 39. Ra8 {[%emt 0:01:28]} Nf4 $1 {[%emt 0:00:57]} 40. Rd8 {[%emt 0:01:10]} Rb3 {[%emt 0:03:01]} ({Better is} 40... Kg7 $11) 41. Rd2 $14 {[%emt 0:00:50]} Nd3+ {[%emt 0:00:03]} 42. Kf1 {[%emt 0:00:47]} Kg7 {[%emt 0:02:33]} 43. Nd5 {[%emt 0:01:22]} f5 {[%emt 0:00:08]} 44. exf5 {[%emt 0:00:33]} gxf5 {[%emt 0:00:05]} 45. Ke2 {[%emt 0:00:18]} Nc5 {[%emt 0:00:58]} 46. Ra2 {[%emt 0:00:18]} f4 {[%emt 0:01:34]} 47. Rd2 {[%emt 0:01:15]} (47. Kd2 $1 $16) 47... Kf7 $11 {[%emt 0:01:02]} 48. Kf2 {[%emt 0:00:20]} Ke6 {[%emt 0:04:32]} 49. Nc7+ {[%emt 0:00:22]} Kf5 {[%emt 0:00:31]} 50. Nb5 {[%emt 0:00:28]} Nd3+ {[%emt 0:01:06]} 51. Ke2 {[%emt 0:00:25]} Nc5 {[%emt 0:00:13]} (51... Nb2 $1 $11) 52. Kf2 {[%emt 0:00:05]} (52. Rd5 $16 {Strongly threatening Nd4+.} Ne6 53. Nd6+ Kf6 54. Ne4+ Kf5 55. Rd6) 52... Nd3+ $14 {[%emt 0:00:04]} 53. Ke2 {[%emt 0:00:04]} (53. Kg1 $14) 53... Nc5 $16 {[%emt 0:00:03]} 54. Rd5 $1 {[%emt 0:01:16] Black must now prevent Nd4+.} Rb2+ {[%emt 0:01:45]} 55. Kf1 $1 {[%emt 0:00:10]} Nb3 {[%emt 0:03:13]} 56. Nd6+ {[%emt 0:00:25]} Ke6 {[%emt 0:00:05]} 57. Ne4 {[%emt 0:00:07]} Nd4 $2 {[%emt 0:01:53] Black cannot hold the game after this.} (57... Rc2 $16 58. Rd6+ Ke7) 58. Nc5+ $1 $18 {[%emt 0:00:20]} Kf6 {[%emt 0:01:03]} (58... Kf5 $2 59. Rxe5+ $3 {[%mdl 512]} Kf6 60. Nd7+ (60. Rxh5 Nf5 $18) 60... Kg6 61. Rg5+ Kh6 62. c5 $18) 59. Nd7+ {[%emt 0:00:38]} Kg7 {[%emt 0:00:51]} 60. Rxe5 {[%emt 0:02:06]} Nc2 {[%emt 0:00:15]} 61. Kg1 {[%emt 0:00:18]} Ne3 {[%emt 0:00:10]} 62. Rg5+ {[%emt 0:00:17]} ({Less strong is} 62. Rxh5 Rb1+ 63. Kf2 Rb2+ 64. Ke1 Nxg2+ 65. Kf1 Ne3+ 66. Ke1 (66. Kg1 Rb1+ 67. Kh2 Rb2+ 68. Kh3 Rb1 $14) 66... Ng2+ 67. Kd1 Ne3+ 68. Ke1 Nxc4 $14) 62... Kf7 {[%emt 0:00:08]} 63. Ne5+ {[%emt 0:00:16] White is clearly winning.} Kf6 {[%emt 0:00:07]} 64. Nd3 {[%emt 0:00:21]} Rb1+ {[%emt 0:00:07] [#]} 65. Kf2 $1 {[%emt 0:01:03]} Nf5 {[%emt 0:01:57]} 66. Nxf4 {[%emt 0:00:44]} Rb2+ {[%emt 0:00:05]} 67. Kg1 {[%emt 0:00:26]} Nxh4 {[%emt 0:00:07]} 68. Rxh5 {[%emt 0:00:05]} Nf5 {[%emt 0:00:03]} 69. Nd5+ {[%emt 0:00:17]} Kg6 {[%emt 0:00:08]} 70. Rh8 {[%emt 0:00:45]} Rc2 {[%emt 0:00:16]} 71. Rg8+ {[%emt 0:00:05]} Kf7 {[%emt 0:00:10]} 72. Rg4 {[%emt 0:00:19]} Rc1+ {[%emt 0:00:12]} 73. Kf2 {[%emt 0:00:23]} Rc2+ {[%emt 0:00:04]} 74. Ke1 {[%emt 0:00:11]} Ke6 {[%emt 0:00:08]} (74... Ng7 $142 75. Rf4+ Ke6) 75. Re4+ {[%emt 0:01:28]} Kd6 {[%emt 0:00:05]} 76. Re2 {[%emt 0:00:26]} Rc1+ {[%emt 0:00:05]} 77. Kf2 {[%emt 0:00:16]} Nd4 {[%emt 0:00:04]} 78. Rd2 {[%emt 0:00:19]} Nb3 {[%emt 0:00:22]} 79. Rb2 {[%emt 0:00:55]} Nc5 {[%emt 0:00:04] And now ...Nd3+ would win.} 80. Rb6+ {[%emt 0:00:41]} Ke5 {[%emt 0:00:06]} 81. Ne3 {[%emt 0:00:21]} Ra1 {[%emt 0:00:27]} 82. Rb8 {[%emt 0:00:56]} Nd3+ {[%emt 0:00:14]} 83. Kg3 {[%emt 0:00:19]} Ra7 {[%emt 0:00:16]} 84. Rd8 {[%emt 0:00:15]} Nb4 {[%emt 0:00:15]} 85. c5 {[%emt 0:00:39]} Rc7 {[%emt 0:00:08]} 86. Ng4+ {[%emt 0:00:24]} Ke6 {[%emt 0:00:05]} 87. Rd4 {[%emt 0:00:29]} Nc6 {[%emt 0:00:23]} 88. Rd6+ {[%emt 0:00:06]} Ke7 {[%emt 0:00:04]} 89. Ne3 {[%emt 0:00:15] Threatens to win with Nd5+.} Rc8 {[%emt 0:00:14]} 90. Nd5+ {[%emt 0:00:12]} Kf7 {[%emt 0:00:03]} 91. Nb6 {[%emt 0:00:25]} Rg8+ {[%emt 0:00:05]} 92. Kh2 {[%emt 0:00:36] Weighted Error Value: White=0.18 (very precise) /Black=0.15 (very precise)} 1-0

[Event "1st Bella Italia International 2022"]
[Site "Lignano"]
[Date "2022.08.23"]
[Round "9.4"]
[White "Cappelletto, Joshuaede"]
[Black "Bommini Mounika Akshaya"]
[Result "1/2-1/2"]
[ECO "C24"]
[WhiteElo "2266"]
[BlackElo "2107"]
[Annotator "NA RC"]
[PlyCount "51"]
[EventDate "2022.08.18"]
[EventCountry "ITA"]
[SourceTitle "playchess.com"]
[Source "ChessBase"]
[SourceQuality "1"]
[TimeControl "5400+30"]

1. e4 {[%emt 0:00:03]} e5 {[%emt 0:08:15]} 2. Bc4 {[%emt 0:00:23]} Nf6 {[%emt 0:00:14]} 3. d3 {[%emt 0:00:05]} c6 {[%emt 0:00:05]} 4. Nf3 {[%emt 0:00:05]} d5 {[%emt 0:00:04]} 5. Bb3 {[%emt 0:00:04]} Bb4+ {[%emt 0:00:06]} 6. c3 {[%emt 0:00:52]} Bd6 {[%emt 0:00:06]} 7. O-O {[%emt 0:00:21]} O-O {[%emt 0:02:00]} 8. Re1 {[%emt 0:00:26]} dxe4 {[%emt 0:07:08]} 9. dxe4 {[%emt 0:00:06]} Na6 {[%emt 0:03:36]} 10. Nbd2 {[%emt 0:01:12]} b5 {[%emt 0:01:48]} 11. a4 {[%emt 0:06:34]} Nc5 {[%emt 0:01:12]} 12. Bc2 {[%emt 0:00:05]} a5 {[%emt 0:04:27]} 13. Nf1 {[%emt 0:11:19]} Nxa4 {[%emt 1:07:59]} 14. Bxa4 {[%emt 1:15:55]} bxa4 {[%emt 0:00:00]} 15. Qxa4 {[%emt 0:00:00]} Bd7 {[%emt 0:00:00]} 16. Bg5 {[%emt 0:00:00]} h6 {[%emt 0:00:00]} 17. Bh4 {[%emt 0:00:00]} Qc7 {[%emt 0:00:00]} 18. Bxf6 {[%emt 0:00:00]} gxf6 {[%emt 0:00:00]} 19. Nh4 {[%emt 0:00:00]} Kh7 {[%emt 0:00:00]} 20. Ng3 {[%emt 0:00:00]} Rg8 {[%emt 0:00:00]} 21. Re3 {[%emt 0:00:00]} Rg4 {[%emt 0:00:00]} 22. Nhf5 {[%emt 0:00:00]} Bc5 {[%emt 0:00:00]} 23. Rf3 {[%emt 0:00:00]} Rf4 {[%emt 0:00:00]} 24. Rxf4 {[%emt 0:00:00]} exf4 {[%emt 0:00:00]} 25. Nh5 {[%emt 0:00:00]} Qe5 {[%emt 0:00:00]} 26. Rd1 {[%emt 0:00:00]} 1/2-1/2

[Event "1st Bella Italia International 2022"]
[Site "Lignano"]
[Date "2022.08.23"]
[Round "9.5"]
[White "Zeller, Frank"]
[Black "Player, Edmund C"]
[Result "0-1"]
[ECO "C16"]
[WhiteElo "2356"]
[BlackElo "2202"]
[Annotator "TA"]
[PlyCount "84"]
[EventDate "2022.08.18"]
[EventCountry "ITA"]
[SourceTitle "playchess.com"]
[Source "ChessBase"]
[SourceQuality "1"]
[TimeControl "5400+30"]

{[%evp 19,84,43,25,5,50,43,63,54,103,0,0,0,0,-78,-72,-70,-73,-106,-100,-163,-135,-280,-257,-313,-327,-321,17,0,0,-186,-209,-200,-201,-843,-828,-811,-787,-1900,-1901,-1757,-1677,-2576,-2499,-2218,-1656,-1640,-1571,-1550,-1531,-2151,-2037,-3289,-2636,-29984,-29985,-29987,-2937,-29990,-29987,-29986,-29974,-29986,-1897,-3858,-3657,-2737,-2505]} 1. e4 {[%emt 0:01:30]} e6 {[%emt 0:01:08]} 2. d4 {[%emt 0:01:10]} d5 {[%emt 0:00:02]} 3. Nc3 {[%emt 0:00:12]} Bb4 {[%emt 0:01:45]} 4. e5 {[%emt 0:00:21]} Ne7 {[%emt 0:00:11]} 5. a3 {[%emt 0:00:21]} Bxc3+ {[%emt 0:00:07]} 6. bxc3 {[%emt 0:00:03]} b6 {[%emt 0:05:24]} 7. Qg4 {[%emt 0:01:05]} Ng6 {[%emt 0:00:22]} 8. h4 {[%emt 0:02:14]} h5 {[%emt 0:00:03]} 9. Qg3 {[%emt 0:01:57]} Ba6 {[%emt 0:00:13]} 10. Bxa6 {[%emt 0:00:28]} Nxa6 {[%emt 0:00:02]} 11. a4 {[%emt 0:20:31] C16: French: 3 Nc3 Bb4 4 e5: Lines without ...c5.} Nb8 {[%emt 0:04:56]} 12. Bg5 {[%emt 0:03:59]} Qc8 {[%emt 0:09:47]} 13. Ne2 {[%emt 0:01:14] White is slightly better.} Qa6 {[%emt 0:07:20] [#]} (13... c5 $14) 14. Qf3 $146 {[%emt 0:01:01]} (14. f4 $16) ({Predecessor:} 14. Qe3 c5 15. f4 Nc6 16. dxc5 Qc4 17. cxb6 axb6 18. Qd3 Rxa4 19. Qxc4 Rxc4 20. Ra8+ {½-½ (43) Das,A (2484)-Arizmendi Martinez,J (2572) Lille 2013}) 14... c5 $11 {[%emt 0:06:26][%cal Bc7c5,Bc5d4,Bd4c3][%mdl 32]} 15. O-O {[%emt 0:13:34]} Nc6 {[%emt 0:17:37]} 16. Ng3 {[%emt 0:01:26]} (16. Qe3 $11 {keeps the balance.}) 16... cxd4 $17 {[%emt 0:03:01]} 17. Nxh5 {[%emt 0:00:08]} Rh7 {[%emt 0:00:52]} (17... Ngxe5 18. Nxg7+ Kd7 19. Qf6 $16) 18. Rfe1 {[%emt 0:06:46]} (18. cxd4 $2 Nxd4 19. Qg4 Qc4 $19) 18... dxc3 {[%emt 0:16:06]} (18... Ncxe5 19. Nxg7+ $1 Rxg7 20. Qf6 $18) 19. a5 {[%emt 0:01:02]} (19. Nf4 $17 {is a better defense.}) 19... b5 {[%emt 0:06:25][%cal Bb6b5,Bb5b4][%mdl 32]} (19... Ngxe5 20. Nxg7+ Rxg7 21. Qf6 Rxg5 22. Qxg5 $11) (19... Nxa5 20. Ng3 $17) (19... Ncxe5 $2 20. Nxg7+ $1 Rxg7 21. Qf6 $18) 20. Rad1 {[%emt 0:04:06]} (20. Qe2 $17) 20... b4 $19 {[%emt 0:04:54]} (20... Qxa5 21. Rxd5 exd5 22. Nxg7+ Kf8 23. e6 $15) (20... Ncxe5 21. Nxg7+ Kf8 22. Qf6 $18 (22. Nxe6+ Qxe6 23. Qxd5 Re8 $17)) 21. Rxd5 {[%emt 0:15:01]} exd5 {[%emt 0:06:44]} 22. e6 {[%emt 0:00:19][%csl Ge6][%cal Rf3f7]} Nge5 {[%emt 0:04:45] [#]} (22... f6 23. Bxf6 $1 gxf6 24. Nxf6+ Kd8 25. Nxh7 (25. Qxd5+ $2 Kc7 $19) 25... Qxa5 26. Qf6+ (26. Qf7 Nge7 $11) 26... Nge7 27. Qh8+ Kc7 28. Qxa8 $11) ({Black should play} 22... Nce5 $1 $19 {[%cal Re5f3]} 23. Rxe5 (23. exf7+ $2 Kf8 $19) 23... Nxe5 24. Qxd5 Qc6 $1 25. Qxe5 (25. exf7+ $2 Kf8 $19) 25... fxe6 26. Nxg7+ Kd7) 23. Qxd5 {[%emt 0:11:41]} f6 {[%emt 0:03:05]} (23... Rxh5 $2 24. Rxe5 Qc8 25. exf7+ Kf8 26. Re8+ Qxe8 27. fxe8=Q+ Rxe8 28. Qxc6 $18) (23... Qxa5 $2 24. exf7+ Kf8 25. Be7+ $1 {[%mdl 512]} Nxe7 26. Qxa5 Rxh5 27. Rxe5 (27. Qxb4 N5c6 $11) 27... Rxe5 28. Qxe5 $18) 24. Bxf6 $2 {[%emt 0:04:25] White is on the road to losing.} gxf6 {[%emt 0:00:08]} (24... Rxh5 {gets mated.} 25. Rxe5 Rd8 26. Rxh5) 25. Nxf6+ {[%emt 0:00:22] [#]} Ke7 $1 {[%emt 0:00:03][%cal Be8e7,Be7f6,Bf6e6][%mdl 32]} 26. Qe4 $2 {[%emt 0:04:40] [#]} (26. Nxh7 Qxa5 27. Rxe5 (27. Qxa5 $2 Nxa5 28. Rxe5 b3 $19) 27... Qxd5 28. Rxd5) 26... Kxf6 $1 {[%emt 0:00:51]} 27. Qxh7 {[%emt 0:00:03]} Qc4 {[%emt 0:00:58]} 28. f4 {[%emt 0:01:26]} Qd4+ {[%emt 0:00:27]} 29. Kh1 {[%emt 0:00:10]} Qxf4 {[%emt 0:00:15] aiming for ...b3.} 30. Kg1 {[%emt 0:01:53]} Kxe6 {[%emt 0:00:53] Threatens to win with ...Rf8.} 31. Qg6+ {[%emt 0:00:20]} Qf6 {[%emt 0:00:16]} 32. Qe4 {[%emt 0:00:11]} Kd7 {[%emt 0:00:41] Strongly threatening ...Rf8.} 33. Qh7+ {[%emt 0:02:20]} Qe7 {[%emt 0:00:06]} 34. Qf5+ {[%emt 0:00:39]} Kc7 {[%emt 0:00:03][%cal Oe5f3] ( -> ...Nf3+!)} 35. Qe4 {[%emt 0:00:36] Inhibits Nf3+.} Rf8 {[%emt 0:01:02]} 36. a6 {[%emt 0:00:18]} Qf6 {[%emt 0:00:27]} 37. Kh1 {[%emt 0:00:52]} Qf5 {[%emt 0:00:35]} (37... Qf2 $142 38. Re3 Rf4 39. Qh7+ Nd7 40. Rd3 Rxh4+ 41. Qxh4 Qxh4+ 42. Rh3 Qf2 43. Kh2 Qxc2 44. Rh5 b3 45. Rg5 Qh7+ 46. Kg3 c2 47. Rb5 c1=Q 48. Rb7+ Kd8 49. Rxb3 Qe1+ 50. Kg4 Qhe4+ 51. Kh5 Q1h4#) 38. Qd5 {[%emt 0:00:26]} Rd8 {[%emt 0:00:39]} 39. Qb5 {[%emt 0:00:19]} Rb8 {[%emt 0:00:17]} 40. Qc5 {[%emt 0:00:23] [#]} Qf8 $1 {[%emt 0:00:38]} 41. Qe3 {[%emt 0:00:48]} (41. Qxf8 Rxf8) 41... Qf6 {[%emt 0:00:22]} 42. Qe4 {[%emt 0:00:28]} Rh8 {[%emt 0:00:13] Weighted Error Value: White=1.07/Black=0.36} 0-1